bitfinex-derivatives/quotes_ETHF0:USTF0_20260123
["timestamp","ask_amount","ask_price","bid_price","bid_amount"]
[1769207468623,0.84133177,2958.0,2956.7,1.30314204]
[1769207468927,0.00883895,2958.5,2956.9,1.51150758]
[1769207469127,0.84141038,2958.4,2957.1,1.51150758]
[1769207469325,0.00883895,2958.5,2957.1,1.51150758]
[1769207469837,0.84125957,2958.4,2957.1,1.51150758]
[1769207470036,0.00883895,2958.5,2957.1,1.51150758]
[1769207470240,0.84129845,2958.4,2957.1,1.51150758]
[1769207470438,0.00883895,2958.5,2957.1,1.51150758]
[1769207470933,0.00883895,2958.5,2957.7,0.88796313]
[1769207474342,0.00883895,2958.5,2957.5,0.88796313]
[1769207478838,0.00883895,2958.5,2957.7,0.88796313]
[1769207479039,0.00377292,2958.5,2957.8,1.51150758]
[1769207479339,0.88796313,2959.1,2957.8,1.51150758]
[1769207479541,0.83987672,2959.0,2957.8,1.51150758]
[1769207479743,0.88796313,2959.1,2957.8,1.51150758]
[1769207479944,0.88796313,2959.1,2957.9,0.88796313]
[1769207480144,0.89213539,2959.1,2957.9,0.88796313]
[1769207480345,0.89213539,2959.1,2957.9,2.39947071]
[1769207480545,0.00417226,2959.1,2958.2,0.00506603]
[1769207480840,0.00417226,2959.1,2958.2,0.00823112]
[1769207481142,0.88796313,2958.5,2957.2,0.16928]
[1769207481645,1.4681953,2958.6,2957.2,1.68078758]
[1769207481845,1.4681953,2958.6,2957.3,0.88796313]
[1769207482347,1.4681953,2958.6,2957.3,0.89063216]
[1769207482548,0.00506603,2958.2,2957.3,0.89063216]
[1769207485846,0.00417226,2959.1,2957.9,2.39947071]
[1769207487152,0.00417226,2959.1,2958.1,0.88796313]
[1769207487451,0.00417226,2959.1,2958.1,2.39947071]
[1769207496760,0.00417226,2959.1,2957.9,0.88796313]
[1769207496959,1.71872415,2959.1,2957.7,2.52117844]
[1769207497464,1.71872415,2959.1,2957.9,0.88796313]
[1769207498458,1.71872415,2959.1,2957.6,2.3929607]
[1769207498664,1.71455189,2958.9,2957.6,0.88796313]
[1769207499472,1.71455189,2958.9,2957.6,2.52117844]
[1769207500472,0.00417226,2959.1,2957.8,0.88796313]
[1769207507373,0.84089396,2959.0,2957.8,0.88796313]
[1769207507575,0.00417226,2959.1,2957.8,0.88796313]
[1769207507775,0.84089425,2959.0,2957.8,0.88796313]
[1769207507976,0.00417226,2959.1,2957.8,0.88796313]
[1769207508168,0.84089426,2959.0,2957.8,0.88796313]
[1769207508369,0.00417226,2959.1,2957.8,0.88796313]
[1769207508569,0.84095913,2959.0,2957.8,0.88796313]
[1769207508867,0.00417226,2959.1,2957.8,0.88796313]
[1769207509062,0.84095937,2959.0,2958.1,1.63321531]
[1769207509273,0.00417226,2959.1,2958.1,1.63321531]
[1769207512773,0.00417226,2959.1,2958.6,2.52117844]
[1769207513080,2.60251502,2960.1,2958.7,0.88796313]
[1769207513375,0.83983448,2960.0,2958.7,0.88796313]
[1769207513577,0.83983448,2959.9,2958.7,0.88796313]
[1769207513777,0.83983448,2959.8,2959.1,0.00506603]
[1769207513973,0.83983448,2959.7,2959.1,0.00506603]
[1769207514175,0.83983448,2959.6,2959.1,0.00506603]
[1769207514379,0.00301965,2959.7,2959.1,0.00506603]
[1769207514573,0.83966454,2959.6,2959.1,0.00506603]
[1769207514772,0.00301965,2959.7,2959.1,0.00506603]
[1769207521875,1.71455189,2960.5,2959.3,0.88796313]
[1769207522072,0.83859425,2960.4,2959.3,0.88796313]
[1769207522371,1.05705313,2960.6,2959.3,0.88796313]
[1769207522372,0.88796313,2960.8,2959.5,0.88796313]
[1769207522571,0.88796313,2960.6,2959.3,2.57560566]
[1769207522774,0.83812718,2960.5,2959.3,2.57560566]
[1769207522971,0.89220228,2960.6,2959.3,2.57868594]
[1769207523180,0.83812539,2960.5,2959.3,2.57868594]
[1769207523380,0.89220228,2960.6,2959.3,2.57868594]
[1769207526683,2.61355844,2960.6,2959.3,2.57868594]
[1769207526879,2.60931929,2960.4,2959.3,0.00308028]
[1769207527183,0.88796313,2960.2,2959.3,0.00308028]
[1769207527583,2.60931929,2960.4,2959.3,0.00308028]
[1769207529185,0.00423915,2960.6,2959.5,0.88796313]
[1769207530088,0.00423915,2960.6,2959.3,2.5987519]
[1769207530990,0.00423915,2960.6,2959.3,1.71078877]
[1769207546293,0.00423915,2960.6,2959.3,2.59782953]
[1769207546487,0.00423915,2960.6,2959.4,1.70770849]
[1769207562408,0.00423915,2960.6,2959.4,4.10066919]
[1769207562805,0.00423915,2960.6,2959.5,1.75596417]
[1769207563116,1.67643951,2960.4,2959.3,0.00308028]
[1769207563709,0.83961481,2960.3,2959.3,0.00308028]
[1769207564004,0.83962616,2960.2,2959.3,0.00308028]
[1769207564311,1.67643951,2960.2,2959.3,0.00308028]
[1769207565209,0.83942859,2960.1,2959.3,0.00308028]
[1769207565405,0.17332915,2960.6,2959.3,0.00308028]
[1769207565406,1.67643951,2960.5,2959.3,0.00308028]
[1769207565611,0.83925722,2960.4,2959.3,0.00308028]
[1769207565908,0.83925722,2960.3,2959.3,0.00308028]
[1769207566108,0.83925722,2960.2,2959.3,0.00308028]
[1769207566315,1.67643951,2960.5,2959.3,0.00308028]
[1769207566610,0.83912655,2960.4,2959.3,0.00308028]
[1769207566810,0.83912655,2960.3,2959.3,0.00308028]
[1769207567004,0.83912655,2960.2,2959.3,0.00308028]
[1769207567205,1.67643951,2960.4,2959.3,0.00308028]
[1769207567509,0.83901221,2960.3,2959.3,0.00308028]
[1769207567714,0.83901221,2960.2,2959.3,0.00308028]
[1769207567911,1.67643951,2960.4,2959.3,0.00308028]
[1769207568109,0.83901215,2960.3,2959.3,0.00308028]
[1769207568413,0.83901215,2960.2,2959.3,0.00308028]
[1769207568614,1.67643951,2960.4,2959.3,0.00308028]
[1769207568816,0.83890946,2960.3,2959.3,0.00308028]
[1769207569112,0.83890946,2960.2,2959.3,0.00308028]
[1769207569314,1.67643951,2960.4,2959.3,0.00308028]
[1769207569613,0.83881994,2960.3,2959.3,0.00308028]
[1769207569813,0.83881994,2960.2,2959.3,0.00308028]
[1769207570015,1.67643951,2960.4,2959.3,0.00308028]
[1769207570213,2.51525946,2960.3,2959.3,0.00308028]
[1769207570411,0.16913,2960.0,2959.1,0.00506603]
[1769207570713,2.51525946,2959.9,2959.1,0.00506603]
[1769207570912,1.67643951,2960.3,2959.1,0.00506603]
[1769207571111,0.83881152,2960.2,2959.1,0.00506603]
[1769207571313,0.83881152,2960.1,2959.1,0.00506603]
[1769207571513,0.83881152,2960.0,2959.1,0.00861454]
[1769207571714,1.67643951,2960.2,2959.1,0.00861454]
[1769207571914,0.83856706,2960.1,2959.1,0.00861454]
[1769207572217,1.67643951,2960.2,2959.1,0.00861454]
[1769207572409,0.83841774,2960.1,2959.1,0.00861454]
[1769207572707,1.67643951,2960.2,2959.1,0.00861454]
[1769207572916,0.83841774,2960.1,2959.1,0.00861454]
[1769207573214,1.67643951,2960.2,2959.1,0.00861454]
[1769207573416,0.83839193,2960.1,2959.1,0.00861454]
[1769207573618,1.67643951,2960.2,2959.1,0.00861454]
[1769207573816,0.83839181,2960.1,2959.1,0.00861454]
[1769207574109,1.67643951,2960.2,2959.1,0.00861454]
[1769207575018,0.83831711,2960.1,2959.1,0.00861454]
[1769207575219,1.67643951,2960.2,2959.1,0.00861454]
[1769207577220,0.1691,2960.4,2959.1,0.00861454]
[1769207577421,0.83816328,2960.3,2959.1,0.00861454]
[1769207577621,0.83816328,2960.2,2959.1,0.00861454]
[1769207577822,1.84553951,2960.4,2959.1,0.00861454]
[1769207578017,0.83816317,2960.3,2959.1,0.00861454]
[1769207578218,0.83816317,2960.2,2959.1,0.00861454]
[1769207578519,1.84553951,2960.4,2959.1,0.00861454]
[1769207578719,0.83813682,2960.3,2959.1,0.00861454]
[1769207578920,0.83813682,2960.2,2959.1,0.00861454]
[1769207579117,1.84553951,2960.4,2959.1,0.00861454]
[1769207579322,0.83813697,2960.3,2959.1,0.00861454]
[1769207579622,0.83813697,2960.2,2959.1,0.00861454]
[1769207579822,1.84553951,2960.4,2959.1,0.00861454]
[1769207580124,0.83812509,2960.3,2959.1,0.00861454]
[1769207580421,0.83812509,2960.2,2959.1,0.00861454]
[1769207580619,0.1691,2960.4,2959.1,1.76457871]
[1769207580818,0.83808522,2960.3,2959.1,1.76457871]
[1769207581019,0.1691,2960.4,2959.1,1.76457871]
[1769207581219,0.83808085,2960.3,2959.1,1.76457871]
[1769207581421,0.1691,2960.4,2959.1,1.76457871]
[1769207581619,0.8381105,2960.3,2959.1,1.76457871]
[1769207581819,0.1691,2960.4,2959.1,1.76457871]
[1769207582019,0.83811039,2960.3,2959.1,1.76457871]
[1769207582219,0.1691,2960.4,2959.1,1.76457871]
[1769207582420,0.8381486,2960.3,2959.1,1.76457871]
[1769207582719,0.1691,2960.4,2959.1,1.76457871]
[1769207582922,0.83814872,2960.3,2959.1,1.76457871]
[1769207583122,1.9642846,2960.4,2959.1,1.76457871]
[1769207583324,0.83817703,2960.3,2959.1,1.76457871]
[1769207583525,1.9642846,2960.4,2959.1,1.76457871]
[1769207583718,0.83819439,2960.3,2959.1,1.76457871]
[1769207583918,1.9642846,2960.4,2959.1,1.76457871]
[1769207584126,0.83819434,2960.3,2959.1,1.76457871]
[1769207584326,1.9642846,2960.4,2959.1,1.76457871]
[1769207584525,0.83825024,2960.3,2959.1,1.76457871]
[1769207584827,1.9642846,2960.4,2959.1,1.76457871]
[1769207585027,0.83825042,2960.3,2959.1,1.76457871]
[1769207585230,1.9642846,2960.4,2959.1,1.76457871]
[1769207585429,0.83831635,2960.3,2959.1,1.76457871]
[1769207585635,1.9642846,2960.4,2959.1,1.76457871]
[1769207585822,0.83831643,2960.3,2959.1,1.76457871]
[1769207586024,1.9642846,2960.4,2959.1,1.76457871]
[1769207586330,0.83831632,2960.3,2959.1,1.76457871]
[1769207586521,1.9642846,2960.4,2959.1,1.76457871]
[1769207586726,0.83840585,2960.3,2959.1,1.76457871]
[1769207587029,1.9642846,2960.4,2959.1,1.76457871]
[1769207587230,0.83840607,2960.3,2959.1,1.76457871]
[1769207587432,1.9642846,2960.4,2959.1,1.76457871]
[1769207587628,0.83850908,2960.3,2959.1,1.76457871]
[1769207587834,1.9642846,2960.4,2959.1,1.76457871]
[1769207588033,0.83850907,2960.3,2959.1,1.76457871]
[1769207588234,1.9642846,2960.4,2959.1,1.76457871]
[1769207588431,0.83862909,2960.3,2959.1,1.76457871]
[1769207588733,1.9642846,2960.4,2959.1,1.76457871]
[1769207588929,0.83862904,2960.3,2959.1,1.76457871]
[1769207589129,1.9642846,2960.4,2959.1,1.76457871]
[1769207589327,0.83862903,2960.3,2959.1,1.76457871]
[1769207589625,1.9642846,2960.4,2959.1,1.76457871]
[1769207589626,0.83862903,2960.2,2959.1,1.76457871]
[1769207589827,1.9642846,2960.4,2959.1,1.76457871]
[1769207590027,0.83877045,2960.3,2959.1,1.76457871]
[1769207590229,0.83877045,2960.2,2959.1,1.76457871]
[1769207590535,1.9642846,2960.4,2959.1,1.76457871]
[1769207590734,0.83893967,2960.3,2959.1,1.76457871]
[1769207590936,0.83893967,2960.2,2959.1,1.76457871]
[1769207591132,1.9642846,2960.4,2959.1,1.76457871]
[1769207591432,0.83893967,2960.3,2959.1,1.76457871]
[1769207591728,0.83893967,2960.2,2959.1,1.76457871]
[1769207591934,1.9642846,2960.4,2959.1,1.76457871]
[1769207592233,0.83915108,2960.3,2959.1,1.76457871]
[1769207592434,0.83915108,2960.2,2959.1,1.76457871]
[1769207592634,1.9642846,2960.4,2959.1,1.76457871]
[1769207592829,0.8394373,2960.3,2959.1,1.76457871]
[1769207593034,0.8394373,2960.2,2959.1,1.76457871]
[1769207593231,0.88723979,2960.3,2959.1,1.76457871]
[1769207593428,0.83957485,2960.2,2959.1,1.76457871]
[1769207593628,0.88723979,2960.3,2959.1,1.76457871]
[1769207593830,0.83957486,2960.2,2959.1,1.76457871]
[1769207594033,0.88723979,2960.3,2959.1,1.76457871]
[1769207594228,0.83957468,2960.2,2959.1,1.76457871]
[1769207594435,0.88723979,2960.3,2959.1,1.76457871]
[1769207594728,0.83957732,2960.2,2959.1,1.76457871]
[1769207594933,0.88723979,2960.3,2959.1,1.76457871]
[1769207595128,0.83957732,2960.2,2959.1,1.76457871]
[1769207595324,0.88723979,2960.3,2959.1,1.76457871]
[1769207595533,0.83957974,2960.2,2959.1,1.76457871]
[1769207595734,0.88723979,2960.3,2959.1,1.76457871]
[1769207596034,0.83957973,2960.2,2959.1,1.76457871]
[1769207596235,0.88723979,2960.3,2959.1,1.76457871]
[1769207596428,0.83958371,2960.2,2959.1,1.76457871]
[1769207596624,0.88723979,2960.3,2959.1,1.76457871]
[1769207596830,0.83958371,2960.2,2959.1,1.76457871]
[1769207597124,0.88723979,2960.3,2959.1,1.76457871]
[1769207597328,0.83958371,2960.2,2959.1,1.76457871]
[1769207597632,0.88723979,2960.3,2959.1,1.76457871]
[1769207597833,0.83958721,2960.2,2959.1,0.00861454]
[1769207598135,2.75879664,2960.3,2959.1,0.00861454]
[1769207598336,0.83959453,2960.2,2959.1,0.00861454]
[1769207598535,2.75879664,2960.3,2959.1,0.00861454]
[1769207598736,0.83958969,2960.2,2959.1,0.00861454]
[1769207598937,2.75879664,2960.3,2959.1,0.00861454]
[1769207599139,0.83958976,2960.2,2959.1,0.00861454]
[1769207599341,2.75879664,2960.3,2959.1,0.00861454]
[1769207599537,0.83959294,2960.2,2959.1,0.00861454]
[1769207599839,2.75879664,2960.3,2959.1,0.00861454]
[1769207600031,0.83959283,2960.2,2959.1,0.00861454]
[1769207600232,2.75879664,2960.3,2959.1,0.00861454]
[1769207600432,0.8395967,2960.2,2959.1,0.00861454]
[1769207600639,2.75879664,2960.3,2959.1,0.00861454]
[1769207600842,0.83959663,2960.2,2959.1,0.00861454]
[1769207601037,2.75879664,2960.3,2959.1,0.00861454]
[1769207601239,0.8395967,2960.2,2959.1,0.00861454]
[1769207601536,0.8395967,2960.1,2959.1,0.00861454]
[1769207601739,2.75879664,2960.3,2959.1,0.00861454]
[1769207602037,0.83971376,2960.2,2959.1,0.00861454]
[1769207602235,0.83971376,2960.1,2959.1,0.00861454]
[1769207602435,2.75879664,2960.3,2959.1,0.00861454]
[1769207602635,0.83973817,2960.2,2959.1,0.00861454]
[1769207602835,0.83973817,2960.1,2959.1,0.00861454]
[1769207603043,2.75879664,2960.3,2959.1,0.00861454]
[1769207603246,0.83984501,2960.2,2959.1,0.00861454]
[1769207603542,0.83984501,2960.1,2959.1,0.00861454]
[1769207603742,2.75879664,2960.3,2959.1,0.00861454]
[1769207603946,0.8398737,2960.2,2959.1,0.00861454]
[1769207604143,0.8398737,2960.1,2959.1,0.00861454]
[1769207604444,2.75879664,2960.3,2959.1,0.00861454]
[1769207604744,0.8399006,2960.2,2959.1,0.00861454]
[1769207604943,0.8399006,2960.1,2959.1,0.00861454]
[1769207605146,2.75879664,2960.3,2959.1,0.00861454]
[1769207605444,0.83990613,2960.2,2959.1,0.00861454]
[1769207605645,0.83990613,2960.1,2959.1,0.00861454]
[1769207605849,2.75879664,2960.3,2959.1,0.00861454]
[1769207606048,0.83993441,2960.2,2959.1,0.00861454]
[1769207606247,0.83993441,2960.1,2959.1,0.00861454]
[1769207606447,2.75879664,2960.3,2959.1,0.00861454]
[1769207606746,0.83998105,2960.2,2959.1,0.00861454]
[1769207606946,0.83998105,2960.1,2959.1,0.00861454]
[1769207607150,2.75879664,2960.3,2959.1,0.00861454]
[1769207607350,0.84003337,2960.2,2959.1,0.00861454]
[1769207607548,0.84003337,2960.1,2959.1,0.00861454]
[1769207607749,2.75879664,2960.3,2959.1,0.00861454]
[1769207608048,0.84003326,2960.2,2959.1,0.00861454]
[1769207608249,0.84003326,2960.1,2959.1,0.00861454]
[1769207608450,2.75879664,2960.3,2959.1,0.00861454]
[1769207608651,0.8401111,2960.2,2959.1,0.00861454]
[1769207608847,0.8401111,2960.1,2959.1,0.00861454]
[1769207609050,2.75879664,2960.3,2959.1,0.00861454]
[1769207609353,0.84011116,2960.2,2959.1,0.00861454]
[1769207609555,0.84011116,2960.1,2959.1,0.00861454]
[1769207609755,2.75879664,2960.3,2959.1,0.00861454]
[1769207609955,0.84028077,2960.2,2959.1,0.00861454]
[1769207610253,0.84028077,2960.1,2959.1,0.00861454]
[1769207610444,2.75879664,2960.3,2959.1,0.00861454]
[1769207610647,0.84028099,2960.2,2959.1,0.00861454]
[1769207610849,2.71183784,2960.1,2959.1,0.00861454]
[1769207611048,2.71183784,2960.0,2959.1,0.00861454]
[1769207611247,1.87155685,2960.0,2959.1,0.00861454]
[1769207611443,1.87155685,2960.0,2958.6,2.3929607]
[1769207611444,2.75879664,2959.6,2958.6,2.3929607]
[1769207611649,0.88723979,2959.6,2958.5,2.3929607]
[1769207611849,2.76386267,2959.8,2958.5,2.3929607]
[1769207612046,0.84017976,2959.7,2958.5,2.3929607]
[1769207612244,2.76386267,2959.8,2958.4,2.3929607]
[1769207612449,0.83959712,2959.7,2958.4,2.39703217]
[1769207612650,2.76386267,2959.8,2958.4,2.39703217]
[1769207612850,0.83959739,2959.7,2958.4,2.39703217]
[1769207613048,2.76386267,2959.8,2958.4,2.39703217]
[1769207613254,0.83959716,2959.7,2958.4,2.39703217]
[1769207613556,2.76386267,2959.8,2958.4,2.39703217]
[1769207613858,0.83929589,2959.7,2958.4,2.39703217]
[1769207614055,2.76386267,2959.8,2958.4,2.39703217]
[1769207614255,0.83929589,2959.7,2958.4,0.00407147]
[1769207614455,2.76386267,2959.8,2958.4,0.00407147]
[1769207614656,0.83907507,2959.7,2958.4,0.00407147]
[1769207614858,2.76386267,2959.8,2958.4,0.00407147]
[1769207615158,0.83907501,2959.7,2958.4,0.00407147]
[1769207615359,2.76386267,2959.8,2958.4,0.00407147]
[1769207615554,0.83889955,2959.7,2958.4,0.00407147]
[1769207615856,2.76386267,2959.8,2958.8,0.00506603]
[1769207616056,0.83889926,2959.7,2958.8,0.00506603]
[1769207616255,2.76386267,2959.8,2958.8,0.00506603]
[1769207616459,0.83875627,2959.7,2958.8,0.00506603]
[1769207616657,2.76386267,2959.8,2958.8,0.00506603]
[1769207616860,0.838771,2959.7,2958.8,0.00506603]
[1769207617051,2.76386267,2959.8,2958.8,0.00506603]
[1769207617251,0.83877095,2959.7,2958.8,0.00506603]
[1769207617459,2.76386267,2959.8,2958.8,0.00506603]
[1769207617661,0.83864036,2959.7,2958.8,0.00506603]
[1769207617862,2.76386267,2959.8,2958.8,0.00506603]
[1769207618061,0.83864024,2959.7,2958.8,0.00506603]
[1769207618260,2.76386267,2959.8,2958.8,0.00506603]
[1769207618460,0.83853148,2959.7,2958.8,0.00506603]
[1769207618654,2.76386267,2959.8,2958.8,0.00506603]
[1769207618856,0.83853142,2959.7,2958.8,0.00506603]
[1769207619163,2.76386267,2959.8,2958.8,0.00506603]
[1769207619362,0.83844056,2959.7,2958.8,0.00506603]
[1769207619662,2.76386267,2959.8,2958.8,0.00506603]
[1769207619855,0.83844057,2959.7,2958.8,0.00506603]
[1769207620056,2.76386267,2959.8,2958.8,0.00506603]
[1769207620255,0.83844062,2959.7,2958.8,0.00506603]
[1769207620555,2.76386267,2959.8,2958.8,0.00506603]
[1769207620853,0.83839681,2959.7,2958.8,0.00506603]
[1769207621049,2.76386267,2959.8,2958.8,0.00506603]
[1769207621252,0.83839683,2959.7,2958.8,0.00506603]
[1769207621451,2.76386267,2959.8,2958.8,0.00506603]
[1769207621654,0.83831889,2959.7,2958.8,0.00506603]
[1769207621858,1.79617113,2959.7,2958.8,0.00506603]
[1769207640276,0.84123012,2959.6,2958.8,0.00506603]
[1769207640473,1.79617113,2959.7,2958.8,0.00506603]
[1769207640769,0.8412302,2959.6,2958.8,0.00506603]
[1769207641074,1.79617113,2959.7,2958.8,0.00506603]
[1769207641372,0.84122997,2959.6,2958.8,0.00506603]
[1769207641574,1.79617113,2959.7,2958.8,0.00506603]
[1769207641763,0.8416958,2959.6,2958.8,0.00506603]
[1769207641966,1.79617113,2959.7,2958.8,0.00506603]
[1769207642163,0.84169581,2959.6,2958.8,0.00506603]
[1769207642366,1.79617113,2959.7,2958.8,0.00506603]
[1769207642667,0.84170728,2959.6,2958.8,0.00506603]
[1769207642866,1.79617113,2959.7,2958.8,0.00506603]
[1769207643066,0.84170727,2959.6,2958.8,0.00506603]
[1769207643266,1.79617113,2959.7,2958.8,0.00506603]
[1769207643469,0.84171994,2959.6,2958.8,0.00506603]
[1769207643675,1.79617113,2959.7,2958.8,0.00506603]
[1769207643871,0.84172,2959.6,2958.8,0.00506603]
[1769207644073,1.79617113,2959.7,2958.8,0.00506603]
[1769207644271,0.8417203,2959.6,2958.8,0.00506603]
[1769207644472,1.79617113,2959.7,2958.8,0.00506603]
[1769207644667,2.57621581,2959.6,2958.8,0.00506603]
[1769207644863,1.73448051,2959.6,2958.8,0.00506603]
[1769207648375,0.84180677,2959.5,2958.8,0.00506603]
[1769207648576,1.73448051,2959.6,2958.8,0.00506603]
[1769207648780,0.84180705,2959.5,2958.8,0.00506603]
[1769207649073,1.73448051,2959.6,2958.8,0.00506603]
[1769207649274,0.84180688,2959.5,2958.8,0.00506603]
[1769207649476,1.73448051,2959.6,2958.8,0.00506603]
[1769207649675,0.84182872,2959.5,2958.8,0.00506603]
[1769207649876,1.73448051,2959.6,2958.8,0.00506603]
[1769207650077,0.8418289,2959.5,2958.8,0.00506603]
[1769207650278,1.73448051,2959.6,2958.8,0.00506603]
[1769207650477,0.84187402,2959.5,2958.8,0.00506603]
[1769207650674,1.73448051,2959.6,2958.8,0.00506603]
[1769207650876,0.84187369,2959.5,2958.8,0.00506603]
[1769207651077,1.73448051,2959.6,2958.8,0.00506603]
[1769207651279,0.84187381,2959.5,2958.8,0.00506603]
[1769207651478,1.73448051,2959.6,2958.8,0.00506603]
[1769207651678,0.84187421,2959.5,2958.8,0.00506603]
[1769207651975,1.73448051,2959.6,2958.8,0.00506603]
[1769207652176,0.84187402,2959.5,2958.8,0.00506603]
[1769207652377,1.73448051,2959.6,2958.8,0.00506603]
[1769207652579,0.84187457,2959.5,2958.8,0.00506603]
[1769207652779,1.73448051,2959.6,2958.8,0.00506603]
[1769207652983,0.84187439,2959.5,2958.8,0.00506603]
[1769207653181,1.73448051,2959.6,2958.8,0.00506603]
[1769207653381,0.84187695,2959.5,2958.8,0.00506603]
[1769207653582,1.73448051,2959.6,2958.8,0.00506603]
[1769207653885,0.84187702,2959.5,2958.8,0.00506603]
[1769207654080,1.73448051,2959.6,2958.8,0.00506603]
[1769207654382,0.84187702,2959.5,2958.8,0.00506603]
[1769207654580,0.00506603,2959.8,2958.8,1.7980459]
[1769207654775,0.00506603,2959.8,2958.9,2.3929607]
[1769207655084,0.00506603,2959.8,2958.9,4.18594057]
[1769207655380,6.423,2960.3,2958.9,4.18594057]
[1769207655381,6.423,2960.3,2958.9,1.79297987]
[1769207655581,0.84096584,2960.2,2958.9,1.79297987]
[1769207655775,0.84096584,2960.1,2958.9,1.79297987]
[1769207655974,0.16911,2960.4,2958.9,1.79297987]
[1769207656174,0.84096537,2960.3,2958.9,1.79297987]
[1769207656375,0.84096537,2960.2,2958.9,1.79297987]
[1769207656583,0.84096537,2960.1,2958.9,1.79297987]
[1769207656782,1.90965579,2960.4,2958.9,1.79297987]
[1769207656976,0.84065521,2960.3,2958.9,1.79297987]
[1769207657176,0.84065521,2960.2,2958.9,1.79297987]
[1769207657378,0.84065521,2960.1,2958.9,1.79297987]
[1769207657577,1.90965579,2960.4,2958.9,1.79297987]
[1769207657779,0.8404322,2960.3,2958.9,1.79297987]
[1769207658078,0.8404322,2960.2,2958.9,1.79297987]
[1769207658277,1.90965579,2960.4,2958.9,1.79297987]
[1769207658483,0.84017509,2960.3,2958.9,1.79297987]
[1769207658684,0.84017509,2960.2,2958.9,1.79297987]
[1769207658883,1.90965579,2960.4,2958.9,1.79297987]
[1769207659081,0.84017756,2960.3,2958.9,1.79297987]
[1769207659282,0.84017756,2960.2,2958.9,1.79297987]
[1769207659477,1.90965579,2960.4,2958.9,1.79297987]
[1769207659683,0.84000529,2960.3,2958.9,1.79297987]
[1769207659982,0.84000529,2960.2,2958.9,1.79297987]
[1769207660182,1.90965579,2960.4,2958.9,1.79297987]
[1769207660388,0.83997987,2960.3,2958.9,1.79297987]
[1769207660587,0.83997987,2960.2,2958.9,1.79297987]
[1769207660889,1.90965579,2960.4,2958.9,1.79297987]
[1769207661090,0.83986299,2960.3,2958.9,1.79297987]
[1769207661289,0.83986299,2960.2,2958.9,1.79297987]
[1769207661487,1.90965579,2960.4,2958.9,1.79297987]
[1769207661788,0.83974451,2960.3,2958.9,1.79297987]
[1769207661985,0.83974451,2960.2,2958.9,1.79297987]
[1769207662185,1.90965579,2960.4,2958.9,1.79297987]
[1769207662387,0.8397193,2960.3,2958.9,1.79297987]
[1769207662586,1.90965579,2960.4,2958.9,1.79297987]
[1769207662787,0.83964603,2960.3,2958.9,1.79297987]
[1769207662983,1.90965579,2960.4,2958.9,1.79297987]
[1769207663279,0.83964592,2960.3,2958.9,1.79297987]
[1769207663481,1.90965579,2960.4,2958.9,1.79297987]
[1769207663690,0.83841362,2960.3,2958.9,1.79297987]
[1769207663883,1.90965579,2960.4,2958.9,1.79297987]
[1769207664085,0.83841363,2960.3,2958.9,1.79297987]
[1769207664390,1.90965579,2960.4,2958.9,1.79297987]
[1769207664690,0.8383477,2960.3,2958.9,1.79297987]
[1769207664891,1.90965579,2960.4,2958.9,1.79297987]
[1769207665080,0.83834672,2960.3,2958.9,1.79297987]
[1769207665279,1.90965579,2960.4,2958.9,1.79297987]
[1769207665488,0.83829427,2960.3,2958.9,1.79297987]
[1769207665686,1.90965579,2960.4,2958.9,1.79297987]
[1769207665888,0.83829415,2960.3,2958.9,1.79297987]
[1769207666089,1.74054579,2960.4,2958.9,1.79297987]
[1769207670094,1.74054579,2960.4,2958.8,2.56721673]
[1769207672498,1.93532515,2960.6,2959.1,2.84567342]
[1769207680696,1.93532515,2960.6,2959.1,1.95811777]
[1769207681104,0.838412,2960.5,2959.1,1.95811777]
[1769207681305,1.931086,2960.5,2959.1,1.95811777]
[1769207683408,1.931086,2960.5,2959.1,4.35107847]
[1769207684506,0.83945635,2960.4,2959.1,4.35107847]
[1769207684709,1.931086,2960.5,2959.1,4.35107847]
[1769207684909,0.83945635,2960.4,2959.1,4.35107847]
[1769207685211,1.931086,2960.5,2959.1,4.35107847]
[1769207685412,0.83945619,2960.4,2959.1,4.35107847]
[1769207685603,1.931086,2960.5,2959.1,4.35107847]
[1769207685804,0.83946465,2960.4,2959.1,4.35107847]
[1769207686006,1.931086,2960.5,2959.1,4.35107847]
[1769207686300,0.83946488,2960.4,2959.1,4.35107847]
[1769207686504,1.931086,2960.5,2959.1,4.35107847]
[1769207686710,0.83948007,2960.4,2959.1,4.35107847]
[1769207686907,1.931086,2960.5,2959.1,4.35107847]
[1769207687107,0.83947987,2960.4,2959.1,4.35107847]
[1769207687308,1.931086,2960.5,2959.1,4.35107847]
[1769207687505,0.83950331,2960.4,2959.1,4.35107847]
[1769207687808,1.931086,2960.5,2959.1,4.35107847]
[1769207688015,0.83950331,2960.4,2959.1,4.35107847]
[1769207688205,1.931086,2960.5,2959.1,4.35107847]
[1769207688518,0.83950331,2960.4,2959.1,4.35107847]
[1769207688719,1.931086,2960.5,2959.1,4.35107847]
[1769207688902,0.83951292,2960.4,2959.1,4.35107847]
[1769207689106,1.931086,2960.5,2959.1,4.35107847]
[1769207689312,0.83951303,2960.4,2959.1,4.35107847]
[1769207689508,1.931086,2960.5,2959.1,4.35107847]
[1769207689710,0.83953211,2960.4,2959.1,4.35107847]
[1769207689909,1.931086,2960.5,2959.1,2.3929607]
[1769207690110,2.7706204,2960.4,2959.1,2.3929607]
[1769207690317,1.931086,2960.4,2959.1,2.3929607]
[1769207693218,2.77165138,2960.3,2959.1,2.3929607]
[1769207693413,1.931086,2960.3,2959.1,2.3929607]
[1769207693614,1.931086,2960.3,2959.0,2.3929607]
[1769207693912,2.77170903,2960.2,2959.0,2.3929607]
[1769207694109,1.931086,2960.2,2959.0,2.3929607]
[1769207700514,1.931086,2960.2,2958.9,2.5621407]
[1769207701421,1.931086,2960.0,2958.9,2.5621407]
[1769207701617,1.931086,2960.0,2958.8,2.39802673]
[1769207704622,1.931086,2960.0,2958.8,4.15589146]
[1769207704824,1.90842984,2960.4,2958.9,1.75786473]
[1769207705021,0.84055537,2960.3,2958.9,1.75786473]
[1769207705216,0.84055537,2960.2,2958.9,1.75786473]
[1769207705417,0.84055537,2960.1,2958.9,1.75786473]
[1769207705617,1.90842984,2960.4,2958.9,1.75786473]
[1769207705818,2.57982313,2960.3,2958.9,1.75786473]
[1769207706017,0.84049329,2960.2,2958.9,1.75786473]
[1769207706219,0.84049329,2960.1,2958.9,1.75786473]
[1769207706418,1.73932984,2960.3,2958.9,1.75786473]
[1769207706618,0.8404435,2960.2,2958.9,1.75786473]
[1769207706820,0.8404435,2960.1,2958.9,1.75786473]
[1769207707020,1.73932984,2960.3,2958.9,1.75786473]
[1769207707221,0.84044317,2960.2,2958.9,1.75786473]
[1769207707422,0.84044317,2960.1,2958.9,1.75786473]
[1769207707628,1.73932984,2960.3,2958.9,1.75786473]
[1769207707825,0.84040461,2960.2,2958.9,1.75786473]
[1769207708031,0.84040461,2960.1,2958.9,1.75786473]
[1769207708233,1.73932984,2960.3,2958.9,1.75786473]
[1769207708431,0.84037844,2960.2,2958.9,1.75786473]
[1769207708630,0.84037844,2960.1,2958.9,1.75786473]
[1769207708834,1.73932984,2960.3,2958.9,1.75786473]
[1769207709134,1.72137961,2960.1,2958.8,0.00506603]